bitfinex-derivatives/quotes_SOLF0:USTF0_20250113
["timestamp","ask_amount","ask_price","bid_price","bid_amount"]
[1736729349513,147.14343439,190.89,190.81,13.20707775]
[1736729349908,147.14343439,190.89,190.87,2.6207]
[1736729350209,147.14343439,190.89,190.81,13.20707775]
[1736729350601,5.7772,190.92,190.81,13.20707775]
[1736729350807,3.1572,190.92,190.81,13.20707775]
[1736729351008,13.20707775,190.91,190.81,13.20707775]
[1736729351204,13.20707775,190.91,190.78,13.20707775]
[1736729351408,2.621,190.86,190.8,2.6217]
[1736729351610,13.20707775,190.91,190.78,13.20707775]
[1736729351809,13.20707775,190.88,190.76,2.6221]
[1736729352006,13.20707775,190.85,190.72,13.20707775]
[1736729352213,3.1754,190.84,190.72,13.20707775]
[1736729352407,3.1754,190.84,190.67,0.1912]
[1736729352408,2.6222,190.77,190.69,13.20707775]
[1736729352803,13.20707775,190.79,190.66,13.20707775]
[1736729353514,2.6221,190.78,190.7,2.623]
[1736729353914,13.20707775,190.79,190.7,2.623]
[1736729354718,2.6221,190.77,190.71,2.6229]
[1736729355016,13.20707775,190.79,190.66,13.20707775]
[1736729355712,2.6223,190.76,190.66,13.20707775]
[1736729355916,13.20707775,190.79,190.66,13.20707775]
[1736729356316,2.6221,190.77,190.69,2.6231]
[1736729356520,2.6221,190.77,190.66,13.20707775]
[1736729356914,2.6221,190.77,190.71,2.6228]
[1736729358321,2.6221,190.77,190.69,13.20707775]
[1736729358620,13.20707775,190.82,190.69,13.20707775]
[1736729358917,3.1754,190.84,190.63,5.82]
[1736729358918,8.9954,190.84,190.75,2.6223]
[1736729359218,8.9954,190.84,190.75,13.20707775]
[1736729359219,11.6167,190.84,190.75,13.20707775]
[1736729359816,2.6213,190.83,190.78,2.6219]
[1736729360016,8.9954,190.84,190.72,13.20707775]
[1736729360920,2.6214,190.82,190.76,2.6221]
[1736729361119,8.9954,190.84,190.72,13.20707775]
[1736729361420,8.9954,190.84,190.77,13.20707775]
[1736729361421,3.1754,190.84,190.77,13.20707775]
[1736729361718,3.1754,190.84,190.81,2.6215]
[1736729362323,3.1754,190.84,190.79,2.6218]
[1736729362513,3.1754,190.84,190.72,13.20707775]
[1736729363215,3.1754,190.84,190.76,2.6221]
[1736729363415,3.1754,190.84,190.72,13.20707775]
[1736729364712,2.6221,190.77,190.72,13.20707775]
[1736729365417,2.6221,190.77,190.69,13.20707775]
[1736729366026,13.20707775,190.82,190.72,13.20707775]
[1736729366218,3.1754,190.84,190.72,13.20707775]
[1736729366419,3.1754,190.84,190.75,13.20707775]
[1736729366620,5.7967,190.84,190.75,13.20707775]
[1736729366923,3.1754,190.84,190.75,13.20707775]
[1736729367221,3.1754,190.84,190.8,2.6216]
[1736729370015,5.7966,190.84,190.75,21.11112245]
[1736729370626,5.7966,190.84,190.78,2.6218]
[1736729370831,2.6217,190.8,190.72,21.11112245]
[1736729371126,3.1754,190.84,190.72,21.11112245]
[1736729371917,2.6217,190.8,190.75,2.6222]
[1736729372121,3.1754,190.84,190.72,21.11112245]
[1736729373028,9.09807156,190.95,190.79,21.11112245]
[1736729373232,9.09807156,190.95,190.82,21.11112245]
[1736729373233,150.26113439,190.92,190.82,21.11112245]
[1736729373525,3.1177,190.92,190.89,2.6204]
[1736729373726,147.14343439,190.93,190.85,21.11112245]
[1736729374120,147.14343439,190.93,190.91,2.6201]
[1736729374325,147.14343439,190.93,190.88,21.11112245]
[1736729374528,147.14343439,190.93,190.83,5.78]
[1736729374529,147.14343439,190.93,190.91,21.11112245]
[1736729374729,23.54805904,191.02,190.95,2.6195]
[1736729374929,20.92935904,191.02,190.91,21.11112245]
[1736729375228,2.6189,191.0,190.91,21.11112245]
[1736729375427,3.1177,191.03,190.91,21.11112245]
[1736729375828,3.1177,191.03,190.96,2.6195]
[1736729376023,3.1177,191.03,190.91,21.11112245]
[1736729377023,3.1177,191.03,190.95,2.6196]
[1736729377228,3.1177,191.03,190.91,21.11112245]
[1736729377434,5.7363,191.03,190.97,2.6193]
[1736729377730,3.1177,191.03,190.94,21.11112245]
[1736729377920,3.1177,191.03,190.98,2.6192]
[1736729378126,14.8516596,191.11,190.97,21.11112245]
[1736729378323,1.6146,191.1,191.0,21.11112245]
[1736729378531,1.6146,191.1,191.04,2.6184]
[1736729381532,2.6172,191.13,191.05,2.6181]
[1736729381729,5.76,191.16,191.05,2.6181]
[1736729381923,1.5561,191.15,191.05,2.6181]
[1736729382428,22.66722245,191.15,191.01,2.6187]
[1736729382634,22.66722245,191.15,190.97,21.11112245]
[1736729382931,21.11112245,191.11,190.97,21.11112245]
[1736729383535,21.11112245,191.11,190.94,21.30202245]
[1736729384327,183.92929299,191.22,191.01,21.11112245]
[1736729384628,4.5992,191.2,191.05,21.11112245]
[1736729385636,2.6172,191.13,191.05,21.11112245]
[1736729386534,21.11112245,191.19,191.04,2.6183]
[1736729386732,21.11112245,191.16,190.99,5.76]
[1736729386930,21.11112245,191.16,190.99,21.11112245]
[1736729387129,2.6179,191.08,190.99,21.11112245]
[1736729387331,5.76,191.12,190.99,21.11112245]
[1736729388337,5.76,191.12,191.04,2.6184]
[1736729388836,5.76,191.12,191.05,21.11112245]
[1736729389039,5.76,191.18,191.05,21.11112245]
[1736729389437,5.76,191.18,190.93,5.76]
[1736729389633,5.76,191.18,191.04,21.11112245]
[1736729390137,2.6168,191.16,191.1,2.6175]
[1736729390934,2.6172,191.13,191.08,2.6177]
[1736729391237,10.3592,191.2,191.07,21.11112245]
[1736729391637,2.6172,191.13,191.07,2.618]
[1736729392137,2.617,191.15,191.09,2.6177]
[1736729393436,10.3592,191.2,191.07,21.11112245]
[1736729393636,2.6167,191.17,191.1,2.6175]
[1736729393935,10.3592,191.2,191.1,2.6175]
[1736729394234,10.3592,191.2,191.07,21.11112245]
[1736729394431,21.11112245,191.19,191.04,21.11112245]
[1736729395441,2.6172,191.13,191.04,21.11112245]
[1736729395940,2.617,191.15,191.09,2.6176]
[1736729396439,2.617,191.15,191.1,2.6175]
[1736729396740,2.6167,191.17,191.1,2.6175]
[1736729397237,10.3592,191.2,191.07,21.11112245]
[1736729397441,2.6169,191.15,191.07,21.11112245]
[1736729397837,2.6169,191.15,191.09,2.6177]
[1736729398036,2.617,191.14,191.09,2.6177]
[1736729398537,2.6169,191.16,191.1,2.6176]
[1736729398936,2.6169,191.16,191.07,21.11112245]
[1736729399538,2.6169,191.16,191.11,2.6174]
[1736729400141,4.5992,191.2,191.05,21.11112245]
[1736729400839,2.6171,191.14,191.08,2.6177]
[1736729401230,2.6171,191.14,191.05,21.11112245]
[1736729401435,4.5992,191.2,191.08,21.11112245]
[1736729401940,7.2155,191.2,191.14,2.617]
[1736729402241,4.5992,191.2,191.14,2.617]
[1736729402440,177.98187678,191.23,191.14,2.617]
[1736729402635,21.11112245,191.25,191.11,21.11112245]
[1736729402636,3.305,191.25,191.17,2.6166]
[1736729402839,3.305,191.25,191.14,21.11112245]
[1736729403233,3.305,191.25,191.1,21.11112245]
[1736729403440,3.305,191.25,191.14,21.11112245]
[1736729404243,5.9205,191.25,191.19,2.6162]
[1736729404446,4.2581,191.25,191.14,21.11112245]
[1736729404942,4.2581,191.25,191.19,2.6162]
[1736729405439,2.6155,191.25,191.2,2.6161]
[1736729405834,1.5247,191.29,191.17,21.11112245]
[1736729406039,5.76,191.32,191.22,2.6159]
[1736729406444,2.615,191.29,191.2,21.11112245]
[1736729406639,3.1737,191.34,191.24,2.6155]
[1736729406845,3.1737,191.34,191.2,21.11112245]
[1736729406846,3.1737,191.34,191.23,21.11112245]
[1736729407041,2.6148,191.3,191.23,21.11112245]
[1736729407240,3.1737,191.34,191.25,2.6155]
[1736729407434,1.5378,191.36,191.27,21.11112245]
[1736729407640,2.6144,191.34,191.27,21.11112245]
[1736729408145,2.6144,191.34,191.27,23.72622245]
[1736729408342,2.6144,191.34,191.27,21.11112245]
[1736729408545,1.5875,191.43,191.27,21.11112245]
[1736729408742,7.3475,191.43,191.3,21.11112245]
[1736729409143,9.07772312,191.38,191.3,21.11112245]
[1736729409348,2.614,191.36,191.3,23.72592245]
[1736729409641,9.07772312,191.38,191.27,21.11112245]
[1736729410044,9.07772312,191.38,191.24,21.11112245]
[1736729411844,9.07772312,191.38,191.28,2.6151]
[1736729412047,9.07772312,191.38,191.27,21.11112245]
[1736729412242,1.5875,191.43,191.3,21.11112245]
[1736729412544,1.5875,191.43,191.34,2.6142]
[1736729412745,1.5875,191.43,191.3,21.11112245]
[1736729412746,1.5875,191.43,191.33,21.11112245]
[1736729413545,2.6135,191.4,191.33,23.72552245]
[1736729413745,220.71515159,191.61,191.37,21.11112245]
[1736729413941,21.11112245,191.54,191.37,21.11112245]
[1736729414744,31.61242245,191.56,191.4,21.11112245]
[1736729414946,2.6127,191.46,191.4,21.11112245]
[1736729415843,2.6124,191.49,191.4,21.11112245]
[1736729416043,10.5213,191.56,191.43,21.11112245]
[1736729416447,31.63242245,191.56,191.32,8.10556336]
[1736729416648,31.63242245,191.56,191.39,21.11112245]
[1736729417147,31.63242245,191.56,191.42,21.11112245]
[1736729417648,10.5213,191.56,191.42,21.11112245]
[1736729418147,10.5213,191.56,191.45,21.11112245]
[1736729418445,2.6117,191.53,191.45,21.11112245]
[1736729418649,10.5213,191.56,191.45,21.11112245]
[1736729419037,2.612,191.51,191.45,23.72382245]
[1736729419445,10.5213,191.56,191.45,23.72382245]
[1736729419749,4.7613,191.56,191.45,21.11112245]
[1736729420144,2.612,191.52,191.46,2.6126]
[1736729420347,4.7613,191.56,191.45,21.11112245]
[1736729420547,4.7613,191.56,191.42,21.11112245]
[1736729420746,25.87242245,191.56,191.39,21.11112245]
[1736729421545,21.11112245,191.53,191.36,21.11112245]
[1736729421952,2.613,191.44,191.36,21.11112245]
[1736729422150,5.8,191.51,191.39,21.11112245]
[1736729422350,2.6127,191.46,191.39,23.72472245]
[1736729422649,5.8,191.51,191.39,21.11112245]
[1736729423049,2.6125,191.48,191.39,21.11112245]
[1736729423256,5.8,191.51,191.39,21.11112245]
[1736729423758,5.8,191.51,191.36,21.11112245]
[1736729424255,5.8,191.51,191.38,2.6137]
[1736729424446,5.8,191.51,191.36,21.11112245]
[1736729424650,2.6135,191.4,191.36,21.11112245]
[1736729425053,2.6128,191.45,191.33,23.72542245]
[1736729425249,21.11112245,191.5,191.33,23.72542245]
[1736729425455,21.11112245,191.47,191.33,21.11112245]
[1736729425649,2.6132,191.43,191.33,21.11112245]
[1736729425854,4.8492,191.46,191.33,21.11112245]
[1736729426257,2.6142,191.35,191.3,21.11112245]
[1736729426452,4.8492,191.46,191.3,21.11112245]
[1736729426760,4.8492,191.46,191.31,2.6147]
[1736729427457,2.6133,191.42,191.31,2.6147]
[1736729427657,4.8492,191.46,191.31,2.6147]
[1736729428258,4.8492,191.46,191.36,21.11112245]
[1736729428453,5.84,191.52,191.39,21.11112245]
[1736729428654,1.5345,191.51,191.39,21.11112245]
[1736729429053,2.6128,191.46,191.4,2.6134]
[1736729429358,1.5345,191.51,191.39,21.11112245]
[1736729429749,1.5345,191.51,191.42,21.11112245]
[1736729430956,1.5345,191.51,191.43,2.613]
[1736729431153,5.82,191.57,191.45,21.11112245]
[1736729431760,5.82,191.57,191.45,23.72382245]
[1736729432153,2.6119,191.52,191.45,23.72382245]
[1736729433158,2.612,191.51,191.45,23.72382245]
[1736729433359,5.82,191.57,191.45,21.11112245]
[1736729433755,3.0827,191.58,191.45,21.11112245]
[1736729434365,3.0827,191.58,191.42,21.11112245]
[1736729434663,1.6257,191.57,191.42,21.11112245]
[1736729436065,1.6257,191.57,191.45,2.6128]
[1736729436772,2.612,191.52,191.45,2.6128]
[1736729437370,2.612,191.51,191.45,2.6128]
[1736729437772,2.612,191.51,191.46,2.6126]
[1736729437972,1.6257,191.57,191.46,2.6126]
[1736729438475,1.6257,191.57,191.42,21.11112245]
[1736729438777,3.0827,191.58,191.47,21.11112245]
[1736729438975,1.565,191.64,191.5,21.11112245]
[1736729439166,2.6116,191.54,191.5,21.11112245]
[1736729440074,10.6202,191.64,191.5,21.11112245]
[1736729440272,2.6114,191.55,191.5,21.11112245]
[1736729441176,10.6202,191.64,191.47,21.11112245]
[1736729441375,21.11112245,191.62,191.47,21.11112245]
[1736729442973,21.11112245,191.59,191.45,2.6128]
[1736729443275,21.11112245,191.59,191.42,21.11112245]
[1736729443475,10.6202,191.64,191.4,2.6133]
[1736729443476,21.11112245,191.56,191.4,2.6133]
[1736729443675,8.9124,191.55,191.4,2.6133]
[1736729443866,10.4356,191.55,191.4,2.6133]
[1736729444069,10.4356,191.55,191.39,21.11112245]
[1736729444272,10.4356,191.55,191.42,21.11112245]
[1736729444576,10.4356,191.55,191.39,21.11112245]
[1736729445084,21.11112245,191.53,191.39,21.11112245]
[1736729445375,21.11112245,191.53,191.36,21.11112245]
[1736729445573,21.11112245,191.5,191.29,72.84560067]
[1736729445776,188.0,191.54,191.29,72.84560067]
[1736729445777,21.11112245,191.47,191.3,21.11112245]
[1736729445974,7.3032,191.46,191.3,21.11112245]
[1736729446279,2.6137,191.39,191.32,2.6145]
[1736729446571,10.5491,191.46,191.3,21.11112245]
[1736729446775,2.6136,191.39,191.3,21.11112245]
[1736729446969,10.5491,191.46,191.3,21.11112245]
[1736729447479,2.6137,191.38,191.31,2.6147]
[1736729448477,2.6136,191.4,191.32,2.6145]
[1736729448678,2.6136,191.4,191.3,21.11112245]
[1736729449180,2.6138,191.38,191.3,21.11112245]
[1736729449380,10.5491,191.46,191.3,21.11112245]
[1736729450474,2.6134,191.41,191.34,2.6142]
[1736729451073,2.6132,191.43,191.36,21.11112245]
[1736729451373,10.5291,191.46,191.33,21.11112245]
[1736729451581,10.5291,191.46,191.35,2.6141]
[1736729452377,2.6133,191.41,191.35,2.6141]
[1736729452580,2.6133,191.41,191.33,21.11112245]
[1736729452581,10.5291,191.46,191.36,2.614]
[1736729452774,10.5291,191.46,191.33,21.11112245]
[1736729452979,4.7691,191.46,191.36,21.11112245]
[1736729453386,5.78,191.5,191.36,21.11112245]
[1736729453886,2.6126,191.46,191.4,2.6134]
[1736729454275,2.6126,191.46,191.39,21.11112245]
[1736729454786,5.76,191.52,191.39,23.72462245]
[1736729455483,2.6128,191.45,191.39,23.72462245]
[1736729455982,21.11112245,191.47,191.32,21.11112245]
[1736729457184,21.11112245,191.47,191.33,2.6143]
[1736729457577,2.6137,191.39,191.33,2.6143]
[1736729458586,2.6137,191.39,191.34,2.6143]
[1736729459184,21.11112245,191.47,191.34,2.6143]
[1736729459385,2.6135,191.41,191.32,21.11112245]
[1736729459991,2.6135,191.41,191.35,2.6141]
[1736729460190,21.11112245,191.5,191.32,21.11112245]
[1736729460396,21.11112245,191.47,191.32,21.11112245]
[1736729460684,21.11112245,191.47,191.21,7.02085303]
[1736729460685,21.11112245,191.41,191.26,21.11112245]
[1736729460886,10.3783,191.4,191.27,2.6152]
[1736729461081,10.3783,191.4,191.29,21.11112245]
[1736729461283,8.8707,191.4,191.32,21.11112245]
[1736729461487,188.0,191.49,191.34,2.6142]
[1736729461488,2.6136,191.39,191.34,2.6142]
[1736729461790,3.1307,191.46,191.35,21.11112245]
[1736729462091,2.6131,191.43,191.38,21.11112245]
[1736729462390,3.1307,191.46,191.38,21.11112245]
[1736729462688,5.74,191.51,191.38,21.11112245]
[1736729463092,2.6128,191.45,191.39,2.6136]
[1736729463291,5.74,191.51,191.39,2.6136]
[1736729463693,2.6129,191.45,191.39,2.6136]
[1736729463993,5.74,191.51,191.38,23.72482245]
[1736729465190,3.1307,191.52,191.41,21.11112245]
[1736729465588,2.6124,191.48,191.41,21.11112245]
[1736729466586,4.2229,191.52,191.45,2.6127]
[1736729466790,2.6119,191.52,191.44,21.11112245]
[1736729466988,7.2649,191.58,191.47,21.11112245]
[1736729467189,2.6118,191.53,191.47,23.72362245]
[1736729468392,2.6114,191.55,191.47,21.11112245]
[1736729468888,1.5249,191.58,191.47,21.11112245]
[1736729470094,2.6118,191.53,191.47,23.72352245]
[1736729470890,2.6121,191.5,191.47,21.11112245]
[1736729471085,1.5249,191.58,191.44,21.11112245]
[1736729471493,2.6122,191.5,191.44,21.11112245]
[1736729471795,1.5249,191.58,191.44,21.11112245]
[1736729471993,2.6114,191.55,191.49,2.6122]
[1736729472295,1.5249,191.58,191.47,21.11112245]
[1736729472692,2.6114,191.55,191.49,2.6121]
[1736729472890,1.5249,191.58,191.47,21.11112245]
[1736729473592,1.5944,191.61,191.47,21.11112245]
[1736729473796,2.6114,191.56,191.5,2.612]
[1736729473992,2.6114,191.56,191.5,23.72312245]
[1736729474397,3.2554,191.62,191.47,21.11112245]
[1736729474592,21.11112245,191.6,191.44,21.11112245]
[1736729474898,1.6003,191.59,191.44,21.11112245]
[1736729475100,2.6123,191.49,191.44,21.11112245]
[1736729475499,2.6118,191.53,191.44,21.11112245]
[1736729475697,5.74,191.56,191.44,21.11112245]
[1736729478099,2.6123,191.49,191.44,21.11112245]
[1736729478301,5.74,191.56,191.44,21.11112245]
[1736729478491,5.74,191.56,191.41,21.11112245]
[1736729478904,2.6128,191.45,191.41,21.11112245]
[1736729479502,2.6128,191.45,191.39,2.6136]
[1736729480595,5.74,191.48,191.35,21.29482245]
[1736729480799,5.74,191.48,191.35,21.11112245]
[1736729481097,1.6181,191.47,191.34,13.70346306]
[1736729481297,1.6181,191.47,191.34,11.08916306]
[1736729481700,21.11112245,191.45,191.29,21.11112245]
[1736729481904,1.6181,191.47,191.26,0.1833]
[1736729481905,21.11112245,191.42,191.26,21.11112245]
[1736729482398,21.11112245,191.39,191.23,21.11112245]
[1736729482606,7.3581,191.38,191.23,21.11112245]
[1736729482999,2.6143,191.34,191.24,2.6156]
[1736729483201,7.3581,191.38,191.24,2.6156]
[1736729483499,7.3581,191.38,191.23,21.11112245]
[1736729483707,2.6146,191.32,191.24,2.6155]
[1736729483906,7.3581,191.38,191.24,2.6155]
[1736729484505,2.6145,191.33,191.23,21.11112245]
[1736729484906,2.6147,191.31,191.24,2.6156]
[1736729485406,7.3581,191.38,191.23,21.11112245]
[1736729485812,21.11112245,191.36,191.2,21.11112245]
[1736729486103,3.1567,191.35,191.2,21.11112245]
[1736729486309,2.6151,191.28,191.22,2.6159]
[1736729486499,3.1567,191.35,191.2,21.11112245]
[1736729486901,2.6153,191.27,191.2,21.11112245]
[1736729488108,2.6153,191.27,191.2,23.72732245]
[1736729488309,3.1567,191.35,191.23,21.11112245]
[1736729488907,3.1567,191.35,191.25,2.6155]
[1736729489208,2.6148,191.3,191.23,21.11112245]
[1736729489906,2.615,191.29,191.23,21.11112245]
[1736729490105,3.1567,191.35,191.2,21.11112245]
[1736729490297,3.1567,191.35,191.2,23.72722245]
[1736729490501,3.1567,191.35,191.2,21.11112245]
[1736729490502,2.6154,191.26,191.2,21.11112245]
[1736729490905,3.1567,191.35,191.21,2.6161]
[1736729491103,3.1567,191.35,191.2,21.11112245]
[1736729491508,2.6152,191.28,191.2,21.11112245]
[1736729492910,3.1567,191.35,191.2,21.11112245]
[1736729493107,21.11112245,191.33,191.17,21.11112245]
[1736729493507,21.11112245,191.33,191.19,2.6163]
[1736729493901,2.615,191.29,191.19,2.6163]
[1736729494101,5.74,191.3,191.19,2.6163]
[1736729494513,2.6155,191.25,191.19,2.6163]
[1736729495212,5.74,191.3,191.2,2.6162]
[1736729495213,2.6154,191.26,191.2,2.6162]
[1736729495810,1.6181,191.38,191.25,21.11112245]
[1736729496011,3.1232,191.43,191.32,21.11112245]
[1736729496414,2.6134,191.41,191.34,2.6142]
[1736729496715,3.1232,191.43,191.21,5.9244]
[1736729496716,3.1232,191.43,191.29,21.11112245]
[1736729496916,2.6143,191.35,191.29,21.11112245]
[1736729497118,21.11112245,191.42,191.26,21.11112245]
[1736729497611,21.11112245,191.42,191.28,2.615]
[1736729497815,3.1232,191.43,191.29,21.11112245]
[1736729498012,2.6142,191.35,191.29,23.72612245]
[1736729498316,2.6142,191.35,191.29,21.11112245]
[1736729499118,2.6143,191.34,191.29,21.11112245]
[1736729500407,2.6147,191.31,191.29,21.11112245]
[1736729501416,3.1232,191.43,191.29,21.11112245]
[1736729501710,2.6145,191.33,191.29,21.11112245]
[1736729501912,3.1232,191.43,191.32,21.11112245]
[1736729502117,2.6135,191.41,191.39,21.11112245]
[1736729502623,21.11112245,191.58,191.39,21.11112245]
[1736729502911,5.74,191.49,191.42,21.11112245]
[1736729503213,2.6128,191.45,191.42,21.11112245]
[1736729503618,2.6127,191.46,191.42,21.11112245]
[1736729504006,3.2062,191.5,191.42,21.11112245]
[1736729504206,3.2062,191.5,191.45,21.11112245]
[1736729504810,1.6164,191.56,191.45,21.11112245]
[1736729505010,2.6122,191.5,191.48,21.11112245]
[1736729506217,3.19,191.55,191.48,21.11112245]
[1736729506813,2.6117,191.53,191.48,21.11112245]
[1736729507014,3.19,191.55,191.48,21.11112245]
[1736729508115,2.6121,191.51,191.48,21.11112245]
[1736729509724,2.6121,191.5,191.48,21.11112245]
[1736729509915,2.6121,191.5,191.45,21.11112245]
[1736729510324,3.19,191.55,191.42,21.11112245]
[1736729510518,24.30112245,191.55,191.39,21.11112245]
[1736729511222,2.6133,191.42,191.39,21.11112245]
[1736729512018,2.6121,191.51,191.39,21.11112245]
[1736729512318,24.30112245,191.55,191.39,21.11112245]
[1736729512720,2.6129,191.45,191.39,21.11112245]
[1736729513825,2.6126,191.47,191.4,2.6134]
[1736729514026,24.30112245,191.55,191.4,2.6134]
[1736729514228,2.6128,191.45,191.39,21.11112245]
[1736729515335,2.6128,191.45,191.39,23.72462245]
[1736729515535,8.93,191.55,191.42,21.11112245]
[1736729515735,3.19,191.55,191.45,21.11112245]
[1736729516533,2.6121,191.51,191.45,21.11112245]
[1736729517435,2.6118,191.53,191.46,2.6126]
[1736729517637,3.19,191.55,191.45,21.11112245]
[1736729518336,2.6121,191.51,191.45,23.72392245]
[1736729519836,3.19,191.55,191.45,21.11112245]
[1736729521032,2.6122,191.5,191.45,21.11112245]
[1736729521233,3.19,191.55,191.42,21.11112245]
[1736729521536,24.30112245,191.55,191.39,21.11112245]
[1736729521836,3.19,191.55,191.42,21.11112245]
[1736729522037,3.19,191.55,191.39,21.11112245]
[1736729522529,21.11112245,191.52,191.36,21.11112245]
[1736729523137,2.613,191.44,191.38,2.6137]
[1736729523342,21.11112245,191.52,191.32,5.74]
[1736729523532,3.19,191.55,191.42,21.11112245]
[1736729524341,2.6124,191.48,191.42,23.72432245]
[1736729524540,3.19,191.55,191.42,21.11112245]
[1736729525038,3.19,191.55,191.44,2.6129]
[1736729525239,3.19,191.55,191.45,21.11112245]
[1736729525640,2.612,191.51,191.45,21.11112245]
[1736729527143,2.6122,191.49,191.45,21.11112245]
[1736729527339,2.6122,191.49,191.42,21.11112245]
[1736729527838,2.6121,191.51,191.42,21.11112245]
[1736729528339,3.19,191.55,191.45,2.6127]
[1736729528547,2.6121,191.5,191.45,2.6127]
[1736729528740,3.19,191.55,191.42,21.11112245]
[1736729528942,3.19,191.55,191.47,2.6124]
[1736729529142,113.57191227,191.57,191.5,21.11112245]
[1736729529446,3.0666,191.63,191.5,21.11112245]
[1736729529745,3.0666,191.63,191.53,21.11112245]
[1736729531247,2.6109,191.59,191.53,21.11112245]
[1736729531444,3.0666,191.63,191.53,21.11112245]
[1736729531745,3.0666,191.63,191.51,2.6119]
[1736729531942,3.0666,191.63,191.5,21.11112245]
[1736729532346,2.6112,191.57,191.5,23.72312245]
[1736729532547,3.0666,191.63,191.5,23.72312245]
[1736729532940,2.6114,191.55,191.5,21.11112245]
[1736729533147,3.0666,191.63,191.5,21.11112245]
[1736729534442,3.0666,191.63,191.47,21.11112245]
[1736729534645,21.11112245,191.61,191.47,21.11112245]
[1736729534947,21.11112245,191.58,191.45,0.19015]
[1736729535138,5.74,191.57,191.45,0.19015]
[1736729535337,2.6122,191.49,191.45,0.19015]
[1736729535544,1.6075,191.56,191.45,0.19015]
[1736729537542,2.6124,191.48,191.45,0.19015]
[1736729538647,2.6126,191.46,191.45,0.19015]
[1736729539847,3.0947,191.54,191.45,0.19015]
[1736729540649,2.6126,191.46,191.45,0.19015]
[1736729543248,21.11112245,191.52,191.36,21.11112245]
[1736729543448,21.11112245,191.49,191.36,21.11112245]
[1736729543655,7.3752,191.48,191.34,2.6143]
[1736729544856,21.11112245,191.45,191.32,11.09009209]
[1736729545151,1.5973,191.44,191.33,21.11112245]
[1736729545848,2.6135,191.4,191.33,23.72542245]
[1736729546051,1.5973,191.44,191.33,21.11112245]
[1736729547451,2.6137,191.38,191.33,21.11112245]
[1736729547650,1.5973,191.44,191.32,11.09009209]
[1736729547851,2.6139,191.37,191.32,11.09009209]
[1736729548654,2.6139,191.37,191.3,21.11112245]
[1736729549154,2.6137,191.39,191.33,23.72552245]
[1736729550550,2.6134,191.41,191.35,2.6141]
[1736729550756,1.6464,191.43,191.36,21.11112245]
[1736729551055,1.6464,191.43,191.33,21.11112245]
[1736729551660,2.6139,191.37,191.33,21.11112245]
[1736729553454,5.74,191.4,191.3,21.11112245]
[1736729553654,1.5547,191.39,191.27,21.11112245]
[1736729553855,1.5547,191.39,191.3,21.11112245]
[1736729554154,5.74,191.4,191.33,21.11112245]
[1736729554861,5.74,191.4,191.34,2.6142]
[1736729555350,5.74,191.4,191.36,13.11202528]
[1736729555756,2.6133,191.41,191.36,13.11202528]
[1736729556256,2.6135,191.4,191.36,13.11202528]
[1736729557350,2.6135,191.4,191.34,20.97907482]
[1736729557958,2.6138,191.38,191.34,20.97907482]
[1736729559661,2.6136,191.39,191.34,20.97907482]
[1736729559862,1.5973,191.44,191.38,20.97907482]
[1736729560766,2.6132,191.43,191.38,20.97907482]
[1736729561462,6.48102934,191.46,191.38,20.97907482]
[1736729561656,6.48102934,191.46,191.41,20.97907482]
[1736729562064,7.3263,191.51,191.41,20.97907482]
[1736729562464,2.6128,191.46,191.41,20.97907482]
[1736729562667,5.74,191.51,191.44,20.97907482]
[1736729562962,1.5613,191.52,191.44,20.97907482]
[1736729565069,2.6124,191.48,191.44,20.97907482]
[1736729566171,1.5613,191.52,191.44,20.97907482]
[1736729566365,2.6127,191.46,191.41,20.97907482]
[1736729566874,1.5613,191.52,191.41,20.97907482]
[1736729567770,1.5501,191.51,191.38,20.97907482]
[1736729568171,1.5869,191.5,191.38,20.97907482]
[1736729569466,1.5869,191.5,191.41,20.97907482]
[1736729569660,1.5613,191.52,191.41,20.97907482]
[1736729570263,1.5613,191.52,191.41,23.59227482]
[1736729570463,1.5613,191.52,191.41,20.97907482]
[1736729572173,2.6124,191.48,191.42,2.6131]